fUST/lending_fUST_20240813
["ID","MTS","AMOUNT","RATE_DAILY","PERIOD"]
[334723869,1723507870547,-154.22311708,0.00016613,2]
[334723870,1723507870556,-1184.95,0.00016613,2]
[334723871,1723507870566,-500.0,0.00016613,2]
[334723872,1723507870575,-574.45,0.00016613,2]
[334723873,1723507870584,-557.25,0.00016613,2]
[334723874,1723507870594,-1089.69,0.00016613,2]
[334723875,1723507870603,-2080.48,0.00016613,2]
[334723876,1723507870612,-3408.74,0.00016613,2]
[334723877,1723507870622,-1662.81,0.00016613,2]
[334723878,1723507870632,-1141.64,0.00016613,2]
[334723879,1723507870641,-500.0,0.00016614,2]
[334723880,1723507870651,-752.5,0.00016614,2]
[334723881,1723507870660,-500.0,0.00016614,2]
[334723882,1723507870669,-629.49552275,0.00016614,2]
[334723883,1723507870679,-500.0,0.00016614,2]
[334723884,1723507870690,-989.75,0.00016614,2]
[334723885,1723507870706,-518.52,0.00016614,2]
[334723886,1723507870715,-500.0,0.00016614,2]
[334723887,1723507870725,-500.0,0.00016614,2]
[334723888,1723507870734,-789.14,0.00016614,2]
[334723889,1723507870744,-500.0,0.00016614,2]
[334723890,1723507870754,-695.85,0.00016614,2]
[334723891,1723507870763,-500.0,0.00016614,2]
[334723892,1723507870773,-500.0,0.00016614,2]
[334723893,1723507870783,-500.0,0.00016614,2]
[334723894,1723507870792,-500.0,0.00016614,2]
[334723895,1723507870802,-330.00482037,0.00016614,2]
[334723896,1723507870813,-500.0,0.00016614,2]
[334723897,1723507870823,-463.0464652,0.00016614,2]
[334723898,1723507870835,-550.02,0.00016614,2]
[334723899,1723507870846,-407.37128767,0.00016614,2]
[334723900,1723507870857,-704.31,0.00016614,2]
[334723901,1723507870867,-701.07,0.00016614,2]
[334723902,1723507870877,-500.0,0.00016614,2]
[334723903,1723507870887,-618.22,0.00016614,2]
[334723904,1723507870896,-500.0,0.00016614,2]
[334723905,1723507870905,-688.92,0.00016614,2]
[334723906,1723507870915,-500.0,0.00016614,2]
[334723907,1723507870925,-2423.01,0.00016614,2]
[334723908,1723507870934,-535.05,0.00016614,2]
[334723909,1723507870944,-500.0,0.00016614,2]
[334723910,1723507870955,-1062.16,0.00016614,2]
[334723911,1723507870973,-500.0,0.00016614,2]
[334723912,1723507870982,-500.0,0.00016614,2]
[334723913,1723507870991,-519.53,0.00016614,2]
[334723914,1723507871001,-537.45,0.00016614,2]
[334723915,1723507871011,-500.0,0.00016614,2]
[334723916,1723507871020,-620.74,0.00016614,2]
[334723917,1723507871030,-718.15,0.00016614,2]
[334723918,1723507871040,-500.0,0.00016614,2]
[334723919,1723507871049,-1075.54,0.00016614,2]
[334723920,1723507871059,-1420.19,0.00016614,2]
[334723921,1723507871069,-1225.82,0.00016614,2]
[334723922,1723507871078,-1051.48,0.00016614,2]
[334723923,1723507871087,-173.39733968,0.00016614,2]
[334723924,1723507871097,-6792.66,0.00016614,2]
[334723925,1723507871106,-500.0,0.00016614,2]
[334723926,1723507871116,-209.03431142,0.00016614,2]
[334723927,1723507871125,-500.0,0.00016614,2]
[334723928,1723507871134,-1340.35,0.00016614,2]
[334723929,1723507871145,-500.0,0.00016614,2]
[334723930,1723507871154,-619.41,0.00016614,2]
[334723931,1723507871164,-774.02,0.00016614,2]
[334723932,1723507871173,-575.86,0.00016614,2]
[334723933,1723507871182,-1466.57,0.00016614,2]
[334723934,1723507871192,-500.0,0.00016614,2]
[334723935,1723507871201,-1374.2,0.00016614,2]
[334723936,1723507871213,-866.13,0.00016614,2]
[334723937,1723507871222,-500.0,0.00016614,2]
[334723938,1723507871232,-550.0,0.00016614,2]
[334723939,1723507871241,-2072.3,0.00016614,2]
[334723940,1723507871250,-1212.29,0.00016614,2]
[334723941,1723507871263,-979.49,0.00016614,2]
[334723942,1723507871274,-500.0,0.00016624,2]
[334723943,1723507871283,-655.48,0.00016624,2]
[334723944,1723507871293,-1204.92,0.00016767,2]
[334723945,1723507871303,-891.86,0.00016767,2]
[334723946,1723507871314,-766.88,0.00016767,2]
[334723947,1723507871326,-267.9524887,0.00016799,2]
[334723948,1723507871336,-267.9524887,0.00016799,2]
[334723949,1723507871347,-267.9524887,0.00016799,2]
[334723950,1723507871359,-267.9524887,0.00016799,2]
[334723951,1723507871369,-165.5591359,0.00016799,2]
[334723952,1723507871378,-267.9524887,0.00016799,2]
[334723953,1723507871387,-267.9524887,0.00016799,2]
[334723954,1723507871396,-267.9524887,0.00016799,2]
[334723955,1723507871405,-267.9524887,0.00016799,2]
[334723956,1723507871416,-500.0,0.00016804,2]
[334723957,1723507871425,-500.0,0.00016866,2]
[334723958,1723507871436,-2071.47,0.00016866,2]
[334723959,1723507871447,-7738.72,0.00016866,2]
[334723960,1723507871458,-1399.62,0.00016866,2]
[334723961,1723507871467,-891.99,0.00016876,2]
[334723962,1723507871476,-500.0,0.00016876,2]
[334723963,1723507871486,-4531.63,0.00016876,2]
[334723964,1723507871495,-4572.2,0.00016876,2]
[334723965,1723507871504,-1413.72,0.00016876,2]
[334723966,1723507871513,-1535.96,0.00016876,2]
[334723967,1723507871522,-1232.7,0.00016876,2]
[334723968,1723507871532,-1581.75,0.00016876,2]
[334723969,1723507871541,-500.0,0.00016876,2]
[334723970,1723507871551,-1660.52,0.00016876,2]
[334723971,1723507871560,-500.0,0.00016876,2]
[334723972,1723507871569,-1077.89,0.00016876,2]
[334723973,1723507871579,-7880.3,0.00016876,2]
[334723974,1723507871590,-500.0,0.00016877,2]
[334723975,1723507871600,-360.73464632,0.00016877,2]
[334723976,1723507871612,-674.1,0.00016877,2]
[334723977,1723507871621,-577.84,0.00016877,2]
[334723978,1723507871632,-699.4,0.00016877,2]
[334723979,1723507871642,-629.92,0.00016877,2]
[334723980,1723507871653,-500.0,0.00016877,2]
[334723981,1723507871662,-500.0,0.00016877,2]
[334723982,1723507871672,-500.0,0.00016877,2]
[334723983,1723507871681,-838.38,0.00016877,2]
[334723984,1723507871690,-500.0,0.00016877,2]
[334723985,1723507871700,-500.0,0.00016877,2]
[334723986,1723507871713,-500.0,0.00016877,2]
[334723987,1723507871723,-527.51,0.00016877,2]
[334723988,1723507871828,-500.0,0.00016877,2]
[334723989,1723507871837,-899.59,0.00016877,2]
[334723990,1723507871846,-662.72,0.00016877,2]
[334723991,1723507871855,-500.0,0.00016877,2]
[334723992,1723507871865,-930.41,0.00016877,2]
[334723993,1723507871875,-1528.05,0.00016877,2]
[334723994,1723507871884,-796.66,0.00016877,2]
[334723995,1723507871893,-1373.35,0.00016877,2]
[334723996,1723507871903,-1120.59,0.00016877,2]
[334723997,1723507871913,-843.18,0.00016877,2]
[334723998,1723507871922,-1471.67,0.00016877,2]
[334723999,1723507871932,-500.0,0.00016877,2]
[334724000,1723507871941,-912.85,0.00016877,2]
[334724001,1723507871950,-1170.09,0.00016877,2]
[334724002,1723507871964,-873.34,0.00016877,2]
[334724003,1723507871974,-500.0,0.00016877,2]
[334724004,1723507871983,-639.61,0.00016877,2]
[334724005,1723507871993,-4137.7,0.00016877,2]
[334724006,1723507872003,-500.0,0.00016877,2]
[334724007,1723507872013,-935.03,0.00016877,2]
[334724008,1723507872024,-1462.61,0.00016877,2]
[334724009,1723507872033,-633.08,0.00016877,2]
[334724010,1723507872042,-680.88,0.00016877,2]
[334724011,1723507872052,-768.08,0.00016877,2]
[334724012,1723507872061,-756.12,0.00016877,2]
[334724013,1723507872071,-500.0,0.00016877,2]
[334724014,1723507872080,-500.0,0.00016877,2]
[334724015,1723507872090,-885.75,0.00016877,2]
[334724016,1723507872099,-1515.15,0.00016877,2]
[334724017,1723507872108,-500.0,0.00016877,2]
[334724018,1723507872118,-530.7,0.00016877,2]
[334724019,1723507872127,-638.77,0.00016887,2]
[334724020,1723507872137,-3783.3,0.00016887,2]
[334724021,1723507872146,-1184.95,0.00016887,2]
[334724022,1723507872156,-500.0,0.00016887,2]
[334724023,1723507872165,-574.45,0.00016887,2]
[334724024,1723507872175,-557.25,0.00016887,2]
[334724025,1723507872185,-1089.69,0.00016887,2]
[334724026,1723507872195,-2080.48,0.00016887,2]
[334724027,1723507872207,-3408.74,0.00016887,2]
[334724028,1723507872216,-1662.81,0.00016887,2]
[334724029,1723507872226,-1141.64,0.00016887,2]
[334724030,1723507872235,-367.6026929,0.00016888,2]
[334724031,1723507872244,-752.5,0.00016888,2]
[334724032,1723507872253,-500.0,0.00016888,2]
[334724033,1723507872263,-500.0,0.00016888,2]
[334724034,1723507872273,-989.75,0.00016888,2]
[334724035,1723507872283,-518.52,0.00016888,2]
[334724036,1723507872292,-500.0,0.00016888,2]
[334724037,1723507872303,-500.0,0.00016888,2]
[334724038,1723507872312,-789.14,0.00016888,2]
[334724039,1723507872323,-500.0,0.00016888,2]
[334724040,1723507872333,-695.85,0.00016888,2]
[334724041,1723507872343,-500.0,0.00016888,2]
[334724042,1723507872352,-188.34486963,0.00016888,2]
[334724043,1723507872361,-601.1923396,0.00016888,2]
[334724044,1723507872371,-500.0,0.00016888,2]
[334724045,1723507872380,-500.0,0.00016888,2]
[334724046,1723507872390,-550.02,0.00016888,2]
[334724047,1723507872399,-704.31,0.00016888,2]
[334724048,1723507872409,-701.07,0.00016888,2]
[334724049,1723507872419,-500.0,0.00016888,2]
[334724050,1723507872429,-618.22,0.00016888,2]
[334724051,1723507872438,-500.0,0.00016888,2]
[334724052,1723507872448,-688.92,0.00016888,2]
[334724053,1723507872459,-500.0,0.00016888,2]
[334724054,1723507872468,-2423.01,0.00016888,2]
[334724055,1723507872477,-535.05,0.00016888,2]
[334724056,1723507872487,-500.0,0.00016888,2]
[334724057,1723507872496,-1062.16,0.00016888,2]
[334724058,1723507872505,-500.0,0.00016888,2]
[334724059,1723507872515,-500.0,0.00016888,2]
[334724060,1723507872524,-519.53,0.00016888,2]
[334724061,1723507872533,-537.45,0.00016888,2]
[334724062,1723507872543,-500.0,0.00016888,2]
[334724063,1723507872552,-620.74,0.00016888,2]
[334724064,1723507872561,-718.15,0.00016888,2]
[334724065,1723507872570,-500.0,0.00016888,2]
[334724066,1723507872579,-1075.54,0.00016888,2]
[334724067,1723507872588,-1420.19,0.00016888,2]
[334724068,1723507872598,-1225.82,0.00016888,2]
[334724069,1723507872607,-1051.48,0.00016888,2]
[334724070,1723507872616,-6792.66,0.00016888,2]
[334724071,1723507872625,-500.0,0.00016888,2]
[334724072,1723507872634,-500.0,0.00016888,2]
[334724073,1723507872644,-1340.35,0.00016888,2]
[334724074,1723507872654,-500.0,0.00016888,2]
[334724075,1723507872664,-619.41,0.00016888,2]
[334724076,1723507872673,-774.02,0.00016888,2]
[334724077,1723507872682,-575.86,0.00016888,2]
[334724078,1723507872691,-1466.57,0.00016888,2]
[334724079,1723507872702,-500.0,0.00016888,2]
[334724080,1723507872714,-1374.2,0.00016888,2]
[334724081,1723507872724,-866.13,0.00016888,2]
[334724082,1723507872733,-500.0,0.00016888,2]
[334724083,1723507872743,-550.0,0.00016888,2]
[334724084,1723507872752,-2072.3,0.00016888,2]
[334724085,1723507872761,-1212.29,0.00016888,2]
[334724086,1723507872771,-979.49,0.00016888,2]
[334724087,1723507872782,-203.47430013,0.00016898,2]
[334724088,1723507872792,-655.48,0.00016898,2]
[334724089,1723507872801,-587.0,0.00016972,2]
[334724090,1723507872811,-154.77557542,0.00017,2]
[334724091,1723507872820,-9432.90932631,0.00017019,2]
[334724092,1723507872829,-465.0019139,0.00017031,2]
[334724093,1723507872838,-1204.92,0.00017041,2]
[334724094,1723507872848,-891.86,0.00017041,2]
[334724095,1723507872857,-766.88,0.00017041,2]
[334724096,1723507872866,-403.8,0.00017105,2]
[334724097,1723507872875,-500.0,0.0001714,2]
[334724098,1723507872884,-2071.47,0.0001714,2]
[334724099,1723507872893,-7738.72,0.0001714,2]
[334724100,1723507872902,-1399.62,0.0001714,2]
[334724101,1723507872912,-400.0,0.00017142,2]
[334724102,1723507872921,-525.5901702,0.00017142,2]
[334724103,1723507872931,-400.0,0.00017142,2]
[334724104,1723507872941,-891.99,0.0001715,2]
[334724105,1723507872950,-500.0,0.0001715,2]
[334724106,1723507872960,-4531.63,0.0001715,2]
[334724107,1723507872969,-4572.2,0.0001715,2]
[334724108,1723507872978,-1413.72,0.0001715,2]
[334724109,1723507872987,-1535.96,0.0001715,2]
[334724110,1723507872997,-1232.7,0.0001715,2]
[334724111,1723507873006,-1581.75,0.0001715,2]
[334724112,1723507873015,-500.0,0.0001715,2]
[334724113,1723507873024,-1660.52,0.0001715,2]
[334724114,1723507873033,-500.0,0.0001715,2]
[334724115,1723507873042,-1077.89,0.0001715,2]
[334724116,1723507873051,-7880.3,0.0001715,2]
[334724117,1723507873060,-500.0,0.00017151,2]
[334724118,1723507873069,-674.1,0.00017151,2]
[334724119,1723507873078,-577.84,0.00017151,2]
[334724120,1723507873087,-699.4,0.00017151,2]
[334724121,1723507873096,-629.92,0.00017151,2]
[334724122,1723507873105,-645.14678939,0.00017151,2]
[334724123,1723507873114,-500.0,0.00017151,2]
[334724124,1723507873123,-500.0,0.00017151,2]
[334724125,1723507873131,-838.38,0.00017151,2]
[334724126,1723507873140,-500.0,0.00017151,2]
[334724127,1723507873149,-500.0,0.00017151,2]
[334724128,1723507873159,-500.0,0.00017151,2]
[334724129,1723507873168,-527.51,0.00017151,2]
[334724130,1723507873177,-500.0,0.00017151,2]
[334724131,1723507873186,-899.59,0.00017151,2]
[334724132,1723507873195,-662.72,0.00017151,2]
[334724133,1723507873205,-500.0,0.00017151,2]
[334724134,1723507873214,-930.41,0.00017151,2]
[334724135,1723507873223,-1528.05,0.00017151,2]
[334724136,1723507873233,-796.66,0.00017151,2]
[334724137,1723507873242,-1373.35,0.00017151,2]
[334724138,1723507873251,-1120.59,0.00017151,2]
[334724139,1723507873261,-843.18,0.00017151,2]
[334724140,1723507873270,-1471.67,0.00017151,2]
[334724141,1723507873279,-500.0,0.00017151,2]
[334724142,1723507873290,-912.85,0.00017151,2]
[334724143,1723507873301,-1170.09,0.00017151,2]
[334724144,1723507873312,-873.34,0.00017151,2]
[334724145,1723507873322,-404.53766025,0.00017151,2]
[334724146,1723507873332,-639.61,0.00017151,2]
[334724147,1723507873342,-4137.7,0.00017151,2]
[334724148,1723507873353,-500.0,0.00017151,2]
[334724149,1723507873364,-935.03,0.00017151,2]
[334724150,1723507873373,-1462.61,0.00017151,2]
[334724151,1723507873382,-633.08,0.00017151,2]
[334724152,1723507873392,-680.88,0.00017151,2]
[334724153,1723507873401,-768.08,0.00017151,2]
[334724154,1723507873410,-756.12,0.00017151,2]
[334724155,1723507873420,-500.0,0.00017151,2]
[334724156,1723507873430,-500.0,0.00017151,2]
[334724157,1723507873439,-885.75,0.00017151,2]
[334724158,1723507873448,-1515.15,0.00017151,2]
[334724159,1723507873459,-500.0,0.00017151,2]
[334724160,1723507873468,-530.7,0.00017151,2]
[334724161,1723507873477,-638.77,0.00017161,2]
[334724162,1723507873486,-3783.3,0.00017161,2]
[334724163,1723507873495,-1184.95,0.00017161,2]
[334724164,1723507873504,-500.0,0.00017161,2]
[334724165,1723507873514,-574.45,0.00017161,2]
[334724166,1723507873523,-557.25,0.00017161,2]
[334724167,1723507873533,-1089.69,0.00017161,2]
[334724168,1723507873542,-2080.48,0.00017161,2]
[334724169,1723507873551,-3408.74,0.00017161,2]
[334724170,1723507873560,-1662.81,0.00017161,2]
[334724171,1723507873570,-1141.64,0.00017161,2]
[334724172,1723507873579,-752.5,0.00017162,2]
[334724173,1723507873590,-500.0,0.00017162,2]
[334724174,1723507873601,-500.0,0.00017162,2]
[334724175,1723507873695,-989.75,0.00017162,2]
[334724176,1723507873707,-518.52,0.00017162,2]
[334724177,1723507873716,-500.0,0.00017162,2]
[334724178,1723507873725,-500.0,0.00017162,2]
[334724179,1723507873734,-789.14,0.00017162,2]
[334724180,1723507873745,-500.0,0.00017162,2]
[334724181,1723507873754,-695.85,0.00017162,2]
[334724182,1723507873763,-500.0,0.00017162,2]
[334724183,1723507873772,-500.0,0.00017162,2]
[334724184,1723507873782,-500.0,0.00017162,2]
[334724185,1723507873792,-550.02,0.00017162,2]
[334724186,1723507873801,-704.31,0.00017162,2]
[334724187,1723507873811,-701.07,0.00017162,2]
[334724188,1723507873820,-500.0,0.00017162,2]
[334724189,1723507873829,-618.22,0.00017162,2]
[334724190,1723507873838,-500.0,0.00017162,2]
[334724191,1723507873847,-688.92,0.00017162,2]
[334724192,1723507873857,-351.36827549,0.00017162,2]
[334724193,1723507873866,-2423.01,0.00017162,2]
[334724194,1723507873876,-535.05,0.00017162,2]
[334724195,1723507873885,-500.0,0.00017162,2]
[334724196,1723507873894,-1062.16,0.00017162,2]
[334724197,1723507873903,-500.0,0.00017162,2]
[334724198,1723507873913,-500.0,0.00017162,2]
[334724199,1723507873922,-519.53,0.00017162,2]
[334724200,1723507873932,-537.45,0.00017162,2]
[334724201,1723507873943,-500.0,0.00017162,2]
[334724202,1723507873955,-620.74,0.00017162,2]
[334724203,1723507873965,-718.15,0.00017162,2]
[334724204,1723507873974,-500.0,0.00017162,2]
[334724205,1723507873984,-1075.54,0.00017162,2]
[334724206,1723507873993,-1420.19,0.00017162,2]
[334724207,1723507874003,-1225.82,0.00017162,2]
[334724208,1723507874012,-1051.48,0.00017162,2]
[334724209,1723507874021,-6792.66,0.00017162,2]
[334724210,1723507874031,-500.0,0.00017162,2]
[334724211,1723507874041,-500.0,0.00017162,2]
[334724212,1723507874051,-1340.35,0.00017162,2]
[334724213,1723507874061,-500.0,0.00017162,2]
[334724214,1723507874070,-619.41,0.00017162,2]
[334724215,1723507874080,-774.02,0.00017162,2]
[334724216,1723507874090,-575.86,0.00017162,2]
[334724217,1723507874100,-1466.57,0.00017162,2]
[334724218,1723507874109,-500.0,0.00017162,2]
[334724219,1723507874119,-1374.2,0.00017162,2]
[334724220,1723507874128,-866.13,0.00017162,2]
[334724221,1723507874138,-385.58669129,0.00017162,2]
[334724222,1723507874147,-550.0,0.00017162,2]
[334724223,1723507874157,-2072.3,0.00017162,2]
[334724224,1723507874167,-1212.29,0.00017162,2]
[334724225,1723507874176,-979.49,0.00017162,2]
[334724226,1723507874187,-655.48,0.00017172,2]
[334724227,1723507874197,-1204.92,0.00017315,2]
[334724228,1723507874210,-891.86,0.00017315,2]
[334724229,1723507874220,-766.88,0.00017315,2]
[334724230,1723507874229,-207.3387286,0.00017361,2]
[334724231,1723507874238,-500.0,0.00017414,2]
[334724232,1723507874247,-2071.47,0.00017414,2]
[334724233,1723507874256,-7738.72,0.00017414,2]
[334724234,1723507874265,-1399.62,0.00017414,2]
[334724235,1723507874274,-891.99,0.00017424,2]
[334724236,1723507874283,-500.0,0.00017424,2]
[334724237,1723507874295,-4531.63,0.00017424,2]
[334724238,1723507874305,-4572.2,0.00017424,2]
[334724239,1723507874315,-1413.72,0.00017424,2]
[334724240,1723507874324,-1535.96,0.00017424,2]
[334724241,1723507874334,-1232.7,0.00017424,2]
[334724242,1723507874345,-1581.75,0.00017424,2]
[334724243,1723507874356,-500.0,0.00017424,2]
[334724244,1723507874365,-1660.52,0.00017424,2]
[334724245,1723507874374,-500.0,0.00017424,2]
[334724246,1723507874383,-1077.89,0.00017424,2]
[334724247,1723507874392,-7880.3,0.00017424,2]
[334724248,1723507874402,-500.0,0.00017425,2]
[334724249,1723507874411,-674.1,0.00017425,2]
[334724250,1723507874422,-577.84,0.00017425,2]
[334724251,1723507874433,-699.4,0.00017425,2]
[334724252,1723507874443,-629.92,0.00017425,2]
[334724253,1723507874453,-500.0,0.00017425,2]
[334724254,1723507874472,-500.0,0.00017425,2]
[334724255,1723507874481,-838.38,0.00017425,2]
[334724256,1723507874490,-500.0,0.00017425,2]
[334724257,1723507874499,-500.0,0.00017425,2]
[334724258,1723507874508,-500.0,0.00017425,2]
[334724259,1723507874517,-527.51,0.00017425,2]
[334724260,1723507874527,-500.0,0.00017425,2]
[334724261,1723507874536,-899.59,0.00017425,2]
[334724262,1723507874545,-662.72,0.00017425,2]
[334724263,1723507874554,-329.30849711,0.00017425,2]
[334724264,1723507874563,-930.41,0.00017425,2]
[334724265,1723507874572,-1528.05,0.00017425,2]
[334724266,1723507874583,-796.66,0.00017425,2]
[334724267,1723507874593,-1373.35,0.00017425,2]
[334724268,1723507874602,-1120.59,0.00017425,2]
[334724269,1723507874614,-843.18,0.00017425,2]
[334724270,1723507874624,-1471.67,0.00017425,2]
[334724271,1723507874635,-500.0,0.00017425,2]
[334724272,1723507874645,-912.85,0.00017425,2]
[334724273,1723507874655,-1170.09,0.00017425,2]
[334724274,1723507874665,-873.34,0.00017425,2]
[334724275,1723507874674,-639.61,0.00017425,2]
[334724276,1723507874683,-4137.7,0.00017425,2]
[334724277,1723507874692,-500.0,0.00017425,2]
[334724278,1723507874702,-935.03,0.00017425,2]
[334724279,1723507874714,-1462.61,0.00017425,2]
[334724280,1723507874723,-633.08,0.00017425,2]
[334724281,1723507874732,-680.88,0.00017425,2]
[334724282,1723507874742,-768.08,0.00017425,2]
[334724283,1723507874751,-756.12,0.00017425,2]
[334724284,1723507874762,-500.0,0.00017425,2]
[334724285,1723507874772,-500.0,0.00017425,2]
[334724286,1723507874782,-885.75,0.00017425,2]
[334724287,1723507874791,-1515.15,0.00017425,2]
[334724288,1723507874800,-500.0,0.00017425,2]
[334724289,1723507874810,-530.7,0.00017425,2]
[334724290,1723507874819,-638.77,0.00017435,2]
[334724291,1723507874829,-3783.3,0.00017435,2]
[334724292,1723507874838,-1184.95,0.00017435,2]
[334724293,1723507874848,-500.0,0.00017435,2]
[334724294,1723507874858,-574.45,0.00017435,2]
[334724295,1723507874868,-557.25,0.00017435,2]
[334724296,1723507874878,-1089.69,0.00017435,2]
[334724297,1723507874887,-2080.48,0.00017435,2]
[334724298,1723507874896,-3408.74,0.00017435,2]
[334724299,1723507874906,-1662.81,0.00017435,2]
[334724300,1723507874915,-1141.64,0.00017435,2]
[334724301,1723507874925,-752.5,0.00017436,2]
[334724302,1723507874934,-222.5009295,0.00017436,2]
[334724303,1723507874944,-500.0,0.00017436,2]
[334724304,1723507874953,-989.75,0.00017436,2]
[334724305,1723507874964,-518.52,0.00017436,2]
[334724306,1723507874973,-500.0,0.00017436,2]
[334724307,1723507874982,-500.0,0.00017436,2]
[334724308,1723507874991,-789.14,0.00017436,2]
[334724309,1723507875000,-500.0,0.00017436,2]
[334724310,1723507875011,-695.85,0.00017436,2]
[334724311,1723507875022,-500.0,0.00017436,2]
[334724312,1723507875031,-500.0,0.00017436,2]
[334724313,1723507875040,-500.0,0.00017436,2]
[334724314,1723507875049,-550.02,0.00017436,2]
[334724315,1723507875058,-704.31,0.00017436,2]
[334724316,1723507875068,-701.07,0.00017436,2]
[334724317,1723507875077,-500.0,0.00017436,2]
[334724318,1723507875086,-618.22,0.00017436,2]
[334724319,1723507875096,-500.0,0.00017436,2]
[334724320,1723507875106,-688.92,0.00017436,2]
[334724321,1723507875114,-2423.01,0.00017436,2]
[334724322,1723507875124,-163.41650526,0.00017436,2]
[334724323,1723507875550,-906.23,0.00014137,2]
[334724331,1723508756675,1013.53754801,9.999e-05,2]
[334724332,1723508777116,834.21452004,9.999e-05,2]
[334724333,1723508783597,773.13790444,9.999e-05,2]
[334724334,1723508790236,3372.89762307,9.999e-05,2]
[334724336,1723508814867,535.42898882,9.999e-05,2]
[334724337,1723508827113,-165.78547996,0.0001212,2]
[334724338,1723508827136,-247.478554,0.00013174,2]
[334724339,1723508827157,-224.793289,0.00013699,2]
[334724340,1723508827182,-300.0,0.00014026,2]
[334724341,1723508827204,-387.44535895,0.00014026,2]
[334724342,1723508827229,-585.05,0.00014027,2]
[334724343,1723508827250,-500.0,0.00014027,2]
[334724344,1723508827270,-500.0,0.00014027,2]
[334724345,1723508827291,-500.0,0.00014027,2]
[334724346,1723508827311,-500.0,0.00014027,2]
[334724347,1723508827335,-500.0,0.00014027,2]
[334724348,1723508827355,-500.0,0.00014027,2]
[334724349,1723508827375,-500.0,0.00014027,2]
[334724350,1723508827397,-500.0,0.00014027,2]
[334724351,1723508827419,-500.0,0.00014027,2]
[334724352,1723508827443,-500.0,0.00014027,2]
[334724353,1723508827465,-500.0,0.00014027,2]
[334724354,1723508827488,-500.0,0.00014027,2]
[334724355,1723508827509,-500.0,0.00014027,2]
[334724356,1723508827529,-500.0,0.00014027,2]
[334724357,1723508827552,-500.0,0.00014027,2]
[334724358,1723508827574,-500.0,0.00014027,2]
[334724359,1723508827595,-500.0,0.00014027,2]
[334724360,1723508827616,-520.78045696,0.00014027,2]
[334724361,1723508827638,-108.95253531,0.00014027,2]
[334724362,1723508889629,515.42526962,9.999e-05,2]
[334724365,1723508959141,-429.52105802,0.0001212,2]
[334724410,1723509031624,-300.0,0.00014025,2]
[334724412,1723509031634,-24.87774632,0.00014026,2]
[334724418,1723509031682,-475.12225368,0.00014026,2]
[334724420,1723509031692,-1380.98,0.00014026,2]
[334724422,1723509031701,-4107.59774632,0.00014026,2]
[334724424,1723509031713,-865.28760033,0.00014026,2]
[334724426,1723509031724,-166.01465335,0.00014026,2]
[334724428,1723509031734,-594.57,0.00014026,2]
[334724430,1723509031743,-629.41534665,0.00014026,2]
[334724544,1723509037808,-245.34465335,0.00014026,2]
[334724545,1723509037817,-803.28,0.00014026,2]
[334724546,1723509037826,-511.26,0.00014026,2]
[334724547,1723509037835,-6867.03327725,0.00014027,2]